fUST/lending_fUST_20251022
["ID","MTS","AMOUNT","RATE_DAILY","PERIOD"]
[392007449,1761087032687,-500.0,0.00024979,2]
[392007450,1761087032696,-500.0,0.00024979,2]
[392007451,1761087032705,-500.0,0.00024979,2]
[392007452,1761087032714,-500.0,0.00024979,2]
[392007453,1761087032723,-500.0,0.00024979,2]
[392007454,1761087032733,-500.0,0.00024979,2]
[392007455,1761087032743,-500.0,0.00024979,2]
[392007456,1761087032752,-500.0,0.00024979,2]
[392007457,1761087032761,-500.0,0.00024979,2]
[392007458,1761087032770,-500.0,0.00024979,2]
[392007459,1761087032779,-500.0,0.00024979,2]
[392007460,1761087032789,-500.0,0.00024979,2]
[392007461,1761087032799,-500.0,0.00024979,2]
[392007462,1761087032808,-500.0,0.00024979,2]
[392007463,1761087032817,-500.0,0.00024979,2]
[392007464,1761087032826,-500.0,0.00024979,2]
[392007465,1761087032835,-199.70861002,0.00024979,2]
[392007466,1761087032845,-500.0,0.00024979,2]
[392007467,1761087032854,-641.93933457,0.00024979,2]
[392007468,1761087032863,-500.0,0.00024979,2]
[392007469,1761087032872,-500.0,0.00024979,2]
[392007470,1761087032882,-500.0,0.00024979,2]
[392007471,1761087032891,-500.0,0.00024979,2]
[392007472,1761087032901,-500.0,0.00024979,2]
[392007473,1761087032910,-500.0,0.00024979,2]
[392007474,1761087032919,-500.0,0.00024979,2]
[392007475,1761087032928,-500.0,0.00024979,2]
[392007476,1761087032938,-621.9632089,0.00024979,2]
[392007477,1761087032947,-500.0,0.00024979,2]
[392007478,1761087032956,-500.0,0.00024979,2]
[392007479,1761087032965,-283.87866914,0.00024979,2]
[392007480,1761087032974,-833.33333333,0.00024979,2]
[392007481,1761087032983,-833.33333333,0.00024979,2]
[392007482,1761087032995,-833.33333333,0.00024979,2]
[392007483,1761087033005,-116442.714258,0.0002498,2]
[392007484,1761087033014,-157.44597963,0.00025221,3]
[392007485,1761087033024,-368.50298205,0.00025308,2]
[392007486,1761087033034,-501.85906006,0.00025308,2]
[392007487,1761087033044,-497.8257093,0.00025318,2]
[392007488,1761087033054,-374.0920897,0.00025343,2]
[392007489,1761087033063,-153.0,0.00025343,2]
[392007490,1761087033073,-153.0,0.00025343,2]
[392007491,1761087033082,-153.0,0.00025343,2]
[392007492,1761087033092,-168.0,0.00025356,2]
[392007493,1761087033102,-150.0,0.00025401,2]
[392007494,1761087033111,-168.0,0.00025403,2]
[392007495,1761087033120,-188.91291387,0.00025413,2]
[392007496,1761087033129,-396.86667052,0.00025413,2]
[392007497,1761087033139,-782.64483665,0.00025414,2]
[392007521,1761087037768,-4799.68690922,0.00025414,2]
[392007524,1761087037798,-52639.02538303,0.00025414,2]
[392007526,1761087037809,-7732.47241548,0.00025421,2]
[392007528,1761087037818,-1222.45474618,0.00025445,2]
[392007530,1761087037828,-1000.0,0.00025521,2]
[392007532,1761087037838,-1000.0,0.00025521,2]
[392007533,1761087037850,-1000.0,0.00025521,2]
[392007535,1761087037860,-632.0,0.00025597,2]
[392007537,1761087037871,-983.0,0.00025597,2]
[392007538,1761087037882,-2164.0,0.00025597,2]
[392007539,1761087037892,-150.0,0.00025597,2]
[392007540,1761087037902,-213.949,0.00025597,2]
[392007541,1761087037911,-3815.43329335,0.00025597,2]
[392007542,1761087037925,-389.56670665,0.00025597,2]
[392007543,1761087037934,-696.65,0.00025598,3]
[392007544,1761087037943,-1000.0,0.00025607,2]
[392007545,1761087037952,-422.18029195,0.00025673,2]
[392007546,1761087037961,-500.0,0.00025673,2]
[392007547,1761087037971,-500.0,0.00025673,2]
[392007548,1761087037982,-500.0,0.00025673,2]
[392007549,1761087037992,-175.76038517,0.00025673,2]
[392007550,1761087038156,-572.89338888,0.00025673,2]
[392007551,1761087038166,-500.44622916,0.00025673,2]
[392007552,1761087038176,-500.0,0.00025673,2]
[392007553,1761087038185,-500.0,0.00025673,2]
[392007554,1761087038194,-500.0,0.00025673,2]
[392007555,1761087038204,-500.0,0.00025673,2]
[392007556,1761087038213,-501.36179294,0.00025673,2]
[392007557,1761087038222,-532.44799407,0.00025673,2]
[392007558,1761087038231,-630.26540615,0.00025673,2]
[392007559,1761087038240,-500.0,0.00025673,2]
[392007560,1761087038250,-528.77098469,0.00025673,2]
[392007561,1761087038259,-500.0,0.00025673,2]
[392007562,1761087038268,-500.0,0.00025673,2]
[392007563,1761087038278,-500.0,0.00025673,2]
[392007564,1761087038287,-500.16391042,0.00025673,2]
[392007565,1761087038296,-500.0,0.00025673,2]
[392007566,1761087038306,-500.0,0.00025673,2]
[392007567,1761087038315,-501.06834717,0.00025673,2]
[392007568,1761087038325,-500.0,0.00025673,2]
[392007569,1761087038334,-500.0,0.00025673,2]
[392007570,1761087038343,-500.0,0.00025673,2]
[392007571,1761087038353,-171.48363479,0.00025673,2]
[392007572,1761087038362,-500.0,0.00025673,2]
[392007573,1761087038372,-500.0,0.00025673,2]
[392007574,1761087038381,-519.61551975,0.00025673,2]
[392007575,1761087038390,-500.0,0.00025673,2]
[392007576,1761087038400,-451.14558735,0.00025673,2]
[392007577,1761087038409,-500.0,0.00025673,2]
[392007578,1761087038419,-500.0,0.00025673,2]
[392007579,1761087038429,-500.0,0.00025673,2]
[392007580,1761087038438,-164.45698417,0.00025673,2]
[392007581,1761087038447,-512.14588513,0.00025673,2]
[392007582,1761087038457,-500.0,0.00025673,2]
[392007583,1761087038467,-500.0,0.00025673,2]
[392007584,1761087038477,-500.0,0.00025673,2]
[392007585,1761087038486,-509.12669794,0.00025673,2]
[392007586,1761087038496,-500.0,0.00025673,2]
[392007587,1761087038506,-500.0,0.00025673,2]
[392007588,1761087038515,-500.0,0.00025673,2]
[392007589,1761087038525,-174664.071387,0.00025698,2]
[392007590,1761087038535,-328.68384702,0.000257,2]
[392007591,1761087038544,-3000.0,0.00025706,2]
[392007592,1761087038553,-805.76,0.00025708,3]
[392007593,1761087038562,-812.16,0.00025708,3]
[392007594,1761087038571,-66973.01531476,0.00025718,2]
[392007595,1761087038588,-220444.01283243,0.00025718,2]
[392007603,1761087039914,-285.47,0.00025688,10]
[392007604,1761087039924,-2320.20874573,0.00025718,2]
[392007605,1761087039935,-1844.02,0.00025718,2]
[392007621,1761087043219,-22.75727725,0.00025718,2]
[392007672,1761087047693,-1083.8,0.00025718,2]
[392007673,1761087047705,-16425.0,0.00025718,2]
[392007674,1761087066565,150.0,0.00019983,2]
[392007675,1761087067023,150.0,0.000218,2]
[392007676,1761087067438,160.77,0.00023616,2]
[392007677,1761087070783,150.0,0.00012945,30]
[392007678,1761087071216,150.0,0.00014122,30]
[392007679,1761087071658,150.0,0.00015299,30]
[392007680,1761087072072,150.0,0.00016476,30]
[392007681,1761087072485,150.0,0.00017653,30]
[392007682,1761087073417,150.0,0.0001883,30]
[392007683,1761087073858,160.77,0.00020006,30]
[392007684,1761087080162,200.0,0.00035067,120]
[392007685,1761087100693,196.0,0.00016,2]
[392007686,1761087100767,243.4463373,0.000181,2]
[392007687,1761087142077,150.0,0.00019979,2]
[392007688,1761087142517,150.0,0.00021795,2]
[392007689,1761087142933,178.03,0.00023611,2]
[392007690,1761087146834,11.0136627,0.00013388,30]
[392007691,1761087146866,138.9863373,0.00013388,30]
[392007692,1761087147267,150.0,0.00014605,30]
[392007693,1761087147686,150.0,0.00015822,30]
[392007694,1761087148133,150.0,0.00017039,30]
[392007695,1761087148540,150.0,0.00018256,30]
[392007696,1761087148949,152.59,0.00019473,30]
[392007697,1761087149365,178.03,0.0002069,30]
[392007698,1761087149768,196.18,0.00021907,30]
[392007699,1761087217539,150.0,0.00020204,2]
[392007700,1761087217976,150.0,0.00022041,2]
[392007701,1761087218393,150.0,0.00023877,2]
[392007702,1761087221736,150.0,0.00013358,30]
[392007703,1761087222198,150.0,0.00014572,30]
[392007704,1761087222689,150.0,0.00015786,30]
[392007705,1761087223116,150.0,0.00017001,30]
[392007706,1761087245423,5000.0,0.00024038,2]
[392007707,1761087269404,2684.2236627,0.00024038,2]
[392007708,1761087290389,150.0,0.00020258,2]
[392007709,1761087290811,150.0,0.000221,2]
[392007710,1761087291229,150.0,0.00023942,2]
[392007711,1761087294588,150.0,0.00013593,30]
[392007712,1761087362714,150.0,0.00020441,2]
[392007713,1761087363159,150.0,0.00022299,2]
[392007714,1761087380866,200.0,0.00035039,120]
[392007715,1761087424538,417.15472785,0.00024031,2]
[392007716,1761087431161,150.0,0.00020425,2]
[392007717,1761087431599,150.0,0.00022282,2]
[392007718,1761087464414,5000.0,0.00024031,2]
[392007719,1761087487396,3382.85527215,0.00024031,2]
[392007720,1761087487432,1617.14472785,0.00024031,2]
[392007721,1761087497550,150.0,0.00020411,2]
[392007722,1761087498033,150.0,0.00022266,2]
[392007723,1761087509834,5000.0,0.00024031,2]
[392007724,1761087532650,3082.86527215,0.00024031,2]
[392007725,1761087532677,1917.13472785,0.00024031,2]
[392007726,1761087537678,6340.9128,0.00030137,120]
[392007727,1761087555041,5000.0,0.00024031,2]
[392007728,1761087563950,150.0,0.00020229,2]
[392007729,1761087564371,150.0,0.00022068,2]
[392007730,1761087577268,2782.87527215,0.00024031,2]
[392007731,1761087577295,2217.12472785,0.00024031,2]
[392007733,1761087585734,1099.121135,0.00013699,2]
[392007734,1761087585847,1099.121135,0.00020187,2]
[392007735,1761087599600,5000.0,0.00024031,2]
[392007736,1761087622103,584.64300215,0.00024031,2]
[392007737,1761087622137,4415.35699785,0.00024031,2]
[392007738,1761087640318,463.323844,0.00023638,2]
[392007739,1761087644380,5000.0,0.00024031,2]
[392007740,1761087658772,121.32915815,0.00023623,2]
[392007741,1761087658806,8479.49780285,0.00023623,2]
[392007742,1761087666947,1520.51219715,0.00024031,2]
[392007743,1761087666986,3479.48780285,0.00024031,2]
[392007744,1761087680571,200.0,0.0003504,120]
[392007746,1761087727257,417.15472785,0.00024,3]
[392007747,1761087729663,6103.3674693,0.00023592,2]
[392007748,1761087729694,10000.01,0.00023592,2]
[392007749,1761087729723,10000.01,0.00023592,2]
[392007750,1761087729750,10000.01,0.00023592,2]
[392007751,1761087729779,1807.7146814,0.00023592,2]
[392007752,1761087760756,324.62871783,0.00016,2]
[392007753,1761087765339,162.789109,0.00024,10]
[392007754,1761087825290,264.229666,0.00030137,120]
[392007755,1761087882368,5000.0,0.00024031,2]
[392007756,1761087904654,2704.87749177,0.00024031,2]
[392007757,1761087904685,2295.12250823,0.00024031,2]
[392007758,1761087907499,250.0,0.00035039,30]
[392007759,1761087908092,250.0,0.00035039,30]
[392007760,1761087908772,250.0,0.00035039,30]
[392007761,1761087909377,250.0,0.00035039,30]
[392007762,1761087910065,250.0,0.00035039,30]
[392007763,1761087910680,250.0,0.00035039,30]
[392007764,1761087911529,250.0,0.00035039,30]
[392007765,1761087912251,250.0,0.00035039,30]
[392007766,1761087927007,5000.0,0.00024031,2]
[392007767,1761087949298,2704.88749177,0.00024031,2]
[392007768,1761087949326,2295.11250823,0.00024031,2]
[392007769,1761087972807,5000.0,0.00024031,2]
[392007770,1761087980112,200.0,0.00035039,120]
[392007771,1761087995170,2704.89749177,0.00024031,2]
[392007772,1761087995203,2295.10250823,0.00024031,2]
[392007773,1761087999495,1116.6237315,0.00023585,2]
[392007774,1761088018009,5000.0,0.00024031,2]
[392007775,1761088040996,1588.28376027,0.00024031,2]
[392007779,1761088094612,7848.9300161,0.00023713,2]
[392007780,1761088136965,1393.824524,0.00023525,2]
[392007782,1761088148435,10000.0,0.00018,2]
[392007783,1761088163914,10000.0,0.00024,2]
[392007788,1761088173986,0.01,0.000237,2]
[392007789,1761088174016,299.99,0.000237,2]
[392007791,1761088185608,9700.02,0.00024,2]
[392007792,1761088185636,299.98,0.00024,2]
[392007793,1761088186415,300.0,0.000237,2]
[392007794,1761088199304,300.0,0.000237,2]
[392007795,1761088199527,9100.03,0.00024,2]
[392007796,1761088199553,899.97,0.00024,2]
[392007800,1761088207630,9100.04,0.00024,2]
[392007801,1761088207662,899.96,0.00024,2]
[392007802,1761088209999,150.0,0.00020231,2]
[392007803,1761088210450,150.0,0.0002207,2]
[392007804,1761088210872,150.0,0.00023909,2]
[392007805,1761088212513,300.0,0.000237,2]
[392007807,1761088221880,7755.82,0.00024,2]
[392007808,1761088225338,300.0,0.000237,2]
[392007810,1761088231412,-345.29,0.0002487,10]
[392007811,1761088231438,-287.74,0.0002487,10]
[392007812,1761088231462,-417.15472785,0.00025,10]
[392007813,1761088231485,-1217.052352,0.00025,10]
[392007814,1761088231509,-478.318228,0.00025,10]
[392007843,1761088231995,-403.49195625,0.0002403,2]
[392007844,1761088232005,-690.97397914,0.00024031,2]
[392007849,1761088232038,-1676.91161564,0.00024031,2]
[392007851,1761088232047,-343.64601407,0.000241,2]
[392007853,1761088232058,-163.21674623,0.00024255,2]
[392007855,1761088232067,-200.0,0.00024255,2]
[392007857,1761088232076,-381.0,0.00024355,2]
[392007859,1761088232085,-396.0,0.00024425,2]
[392007861,1761088232095,-381.0,0.00024454,2]
[392007863,1761088232105,-269.0,0.00024531,2]
[392007865,1761088232114,-319.18644965,0.00024569,2]
[392007867,1761088232123,-269.0,0.00024586,2]
[392007869,1761088232133,-300.0,0.00024621,2]
[392007870,1761088232142,-1200.0,0.00024621,2]
[392007871,1761088232153,-300.0,0.00024621,2]
[392007873,1761088232163,-769.75533963,0.00024622,2]
[392007875,1761088232173,-421.1462652,0.00024658,2]
[392007876,1761088232182,-892.19388455,0.00024658,2]
[392007877,1761088232191,-381.0,0.00024692,7]
[392007878,1761088232200,-381.0,0.00024722,2]
[392007879,1761088232210,-151.0,0.00024763,2]
[392007880,1761088232220,-151.0,0.00024763,2]
[392007881,1761088232229,-151.0,0.00024763,2]
[392007882,1761088232238,-151.0,0.00024763,2]
[392007883,1761088232248,-274.82668416,0.00024763,2]
[392007884,1761088232257,-163.21674623,0.00024778,2]
[392007885,1761088232266,-500.0,0.00024778,2]
[392007886,1761088232276,-6185.97793236,0.0002478,2]
[392007887,1761088232285,-3915.22069528,0.0002478,2]
[392007888,1761088232295,-277.80666936,0.00024879,2]
[392007889,1761088232310,-22924.82837188,0.0002488,2]
[392007891,1761088234510,294.23,0.00024,2]
[392007892,1761088234539,4705.77,0.00024,2]
[392007893,1761088235252,239.79,0.0002487,10]
[392007894,1761088237275,300.0,0.000237,2]
[392007898,1761088237767,-500.0,0.0002488,5]
[392007907,1761088237859,-3422.79610469,0.0002488,2]
[392007910,1761088237984,-7098.45558616,0.0002488,2]
[392007911,1761088239018,300.0,0.000237,2]
[392007937,1761088240221,-500.0,0.00024777,2]
[392007938,1761088240231,-35.75,0.00024777,2]
[392007973,1761088240663,196.0,0.00016,2]
[392007981,1761088240732,196.0,0.00016084,2]
[392007989,1761088240803,196.0,0.00016168,2]
[392007993,1761088240877,196.0,0.00016252,2]
[392007994,1761088240944,196.0,0.00016336,2]
[392007995,1761088241003,196.0,0.0001642,2]
[392007996,1761088241070,196.0,0.00016504,2]
[392008000,1761088241132,196.0,0.00016588,2]
[392008007,1761088241196,196.0,0.00016672,2]
[392008057,1761088241681,196.0,0.00016756,2]
[392008064,1761088241743,196.0,0.0001684,2]
[392008072,1761088241807,196.0,0.00016924,2]
[392008079,1761088241868,196.0,0.00017008,2]
[392008087,1761088241928,196.0,0.00017092,2]
[392008093,1761088241982,196.0,0.00017176,2]
[392008102,1761088242058,196.0,0.0001726,2]
[392008109,1761088242116,196.0,0.00017344,2]
[392008113,1761088242180,196.0,0.00017428,2]
[392008114,1761088242247,196.0,0.00017512,2]
[392008115,1761088242441,196.0,0.00017596,2]
[392008116,1761088242497,196.0,0.0001768,2]
[392008118,1761088242562,196.0,0.00017764,2]
[392008119,1761088242620,196.0,0.00017848,2]
[392008120,1761088242685,186.24,0.00017932,2]
[392008121,1761088242715,9.76,0.00017932,2]
[392008122,1761088242750,196.0,0.00018016,2]
[392008123,1761088242810,329.83143589,0.000181,2]
[392008306,1761088247650,199.82,0.0002487,10]
[392008307,1761088249430,300.0,0.000237,2]
[392008308,1761088251924,300.0,0.000237,2]
[392008309,1761088262445,300.0,0.000237,2]
[392008310,1761088264515,813.10081571,0.00026,14]
[392008311,1761088265110,-247.0,0.00026904,22]
[392008312,1761088265477,300.0,0.000237,2]
[392008313,1761088275397,300.0,0.000237,2]
[392008314,1761088277888,-166.52,0.0002487,10]
[392008315,1761088277914,-832.62,0.0002487,10]
[392008316,1761088278554,150.0,0.00020221,2]
[392008317,1761088279733,150.0,0.00022059,2]
[392008318,1761088280191,150.0,0.00023897,2]
[392008319,1761088288779,200.0,0.0003504,120]
[392008320,1761088305266,337.32,0.0002487,10]
[392008321,1761088314379,-250.0,0.00024055,2]
[392008322,1761088314402,-300.0,0.00024776,2]
[392008323,1761088314427,-464.25,0.00024777,2]
[392008324,1761088314450,-272.147,0.00024777,2]
[392008325,1761088314473,-500.0,0.00024777,2]
[392008326,1761088314506,-500.0,0.00024777,2]
[392008327,1761088314537,-500.0,0.00024777,2]
[392008328,1761088314561,-500.0,0.00024777,2]
[392008329,1761088314585,-500.0,0.00024777,2]
[392008330,1761088314611,-500.0,0.00024777,2]
[392008331,1761088314639,-500.0,0.00024777,2]
[392008332,1761088314664,-170.90002847,0.00024777,2]
[392008333,1761088314689,-500.0,0.00024777,2]
[392008334,1761088314713,-594.56019051,0.00024777,2]
[392008335,1761088314740,-500.0,0.00024777,2]
[392008336,1761088314768,-500.0,0.00024777,2]
[392008337,1761088314794,-505.46140618,0.00024777,2]
[392008338,1761088314823,-500.0,0.00024777,2]
[392008339,1761088314852,-500.0,0.00024777,2]
[392008340,1761088314879,-500.0,0.00024777,2]
[392008341,1761088314908,-500.0,0.00024777,2]
[392008342,1761088314934,-463.30167102,0.00024777,2]
[392008343,1761088314963,-500.0,0.00024777,2]
[392008344,1761088314992,-500.0,0.00024777,2]
[392008345,1761088315023,-500.0,0.00024777,2]
[392008346,1761088315051,-500.0,0.00024777,2]
[392008347,1761088315077,-500.0,0.00024777,2]
[392008348,1761088315104,-500.0,0.00024777,2]
[392008349,1761088315134,-500.0,0.00024777,2]
[392008350,1761088315163,-397.65358026,0.00024777,2]
[392008351,1761088347222,150.0,0.00020218,2]
[392008352,1761088347682,150.0,0.00022056,2]
[392008353,1761088348127,150.0,0.00023894,2]
[392008354,1761088360694,196.0,0.00016,2]
[392008355,1761088360754,196.0,0.00016075,2]
[392008356,1761088360818,196.0,0.0001615,2]
[392008357,1761088360883,196.0,0.00016225,2]
[392008358,1761088360947,196.0,0.000163,2]
[392008359,1761088361010,196.0,0.00016375,2]
[392008360,1761088361070,196.0,0.0001645,2]
[392008361,1761088361155,196.0,0.00016525,2]
[392008362,1761088361219,196.0,0.000166,2]
[392008363,1761088361298,196.0,0.00016675,2]
[392008364,1761088361363,196.0,0.0001675,2]
[392008365,1761088361430,196.0,0.00016825,2]
[392008366,1761088361468,-300.0,0.00024776,2]
[392008367,1761088361495,-4948.78234588,0.00024788,2]
[392008368,1761088361523,-2856.37917732,0.00024788,2]
[392008369,1761088361547,-490.0,0.00024878,2]
[392008370,1761088361570,-278.38460069,0.00024879,2]
[392008371,1761088361594,-177.1733545,0.00024879,2]
[392008372,1761088361619,-500.0,0.00024879,2]
[392008373,1761088361645,-500.0,0.00024879,2]
[392008374,1761088361671,-500.0,0.00024879,2]
[392008375,1761088361698,-500.0,0.00024879,2]
[392008376,1761088361727,-500.0,0.00024879,2]
[392008377,1761088361755,-500.0,0.00024879,2]
[392008378,1761088361784,-500.0,0.00024879,2]
[392008379,1761088361813,-500.0,0.00024879,2]
[392008380,1761088361840,-500.0,0.00024879,2]
[392008381,1761088361869,-500.0,0.00024879,2]
[392008382,1761088361899,-500.0,0.00024879,2]
[392008383,1761088361929,-500.0,0.00024879,2]
[392008384,1761088361957,-500.0,0.00024879,2]
[392008385,1761088361986,-500.0,0.00024879,2]
[392008386,1761088362015,-500.0,0.00024879,2]
[392008387,1761088362044,-438.44194487,0.00024879,2]
[392008388,1761088362074,-500.0,0.00024879,2]
[392008389,1761088362102,-500.0,0.00024879,2]
[392008390,1761088362130,-500.0,0.00024879,2]
[392008391,1761088362158,-500.0,0.00024879,2]
[392008392,1761088362184,-500.0,0.00024879,2]
[392008393,1761088362209,-500.0,0.00024879,2]
[392008394,1761088362234,-500.0,0.00024879,2]
[392008395,1761088362259,-500.0,0.00024879,2]
[392008396,1761088362285,-500.0,0.00024879,2]
[392008397,1761088362310,-500.0,0.00024879,2]
[392008398,1761088362335,-500.0,0.00024879,2]
[392008399,1761088362362,-500.0,0.00024879,2]
[392008400,1761088362387,-10010.83857674,0.0002488,2]
[392008401,1761088362425,196.0,0.000169,2]
[392008402,1761088362460,196.0,0.00016975,2]
[392008403,1761088362494,196.0,0.0001705,2]
[392008404,1761088362533,196.0,0.00017125,2]
[392008405,1761088362571,196.0,0.000172,2]
[392008406,1761088362619,196.0,0.00017275,2]
[392008407,1761088362654,196.0,0.0001735,2]
[392008408,1761088362689,196.0,0.00017425,2]
[392008409,1761088362732,196.0,0.000175,2]
[392008410,1761088362771,196.0,0.00017575,2]
[392008411,1761088362807,196.0,0.0001765,2]
[392008412,1761088362841,196.0,0.00017725,2]
[392008413,1761088362884,196.0,0.000178,2]
[392008414,1761088362924,196.0,0.00017875,2]
[392008415,1761088362959,196.0,0.0001795,2]
[392008416,1761088362997,196.0,0.00018025,2]
[392008417,1761088363036,359.49157179,0.000181,2]
[392008418,1761088415464,150.0,0.00020302,2]
[392008419,1761088415864,150.0,0.00022148,2]
[392008420,1761088416269,150.0,0.00023994,2]
[392008423,1761088480784,292.37457859,0.00016,2]
[392008424,1761088482983,150.0,0.00020263,2]
[392008425,1761088483390,150.0,0.00022105,2]
[392008426,1761088483787,150.0,0.00023947,2]
[392008427,1761088506858,461.82839226,0.00035042,30]
[392008428,1761088507055,231.97163247,0.00035042,30]
[392008431,1761088581147,200.0,0.00035042,120]
[392008433,1761088629976,364.2603555,0.00023849,2]
[392008445,1761088880598,200.0,0.00035041,120]
[392008447,1761089116503,666.0,0.00023722,2]
[392008448,1761089180389,200.0,0.00035041,120]
[392008454,1761089266525,8227.37506591,0.00018,2]
[392008455,1761089266557,10000.01,0.00018,2]
[392008456,1761089266588,4874.83842256,0.00018,2]
[392008457,1761089270575,4512.97697502,0.00018,2]
[392008458,1761089289263,420.86897296,0.00010618,2]
[392008459,1761089291106,191.32562946,0.000125,2]
[392008460,1761089291136,10000.01,0.000125,2]
[392008461,1761089291165,1348.77496383,0.000125,2]
[392008463,1761089311435,367.76237913,0.0002,2]
[392008464,1761089311702,8283.47265704,0.00015,2]
[392008465,1761089311734,10000.01,0.00015,2]
[392008466,1761089311762,10000.01,0.00015,2]
[392008467,1761089311790,10000.01,0.00015,2]
[392008468,1761089311821,5178.09304208,0.00015,2]
[392008469,1761089312124,1375.0999375,0.0002061,2]
[392008471,1761089312782,3446.81702042,0.00019,2]
[392008472,1761089312810,10000.01,0.00019,2]
[392008473,1761089312838,10000.01,0.00019,2]
[392008474,1761089312864,8384.58341953,0.00019,2]
[392008476,1761089313329,588.72919717,0.000149,2]
[392008477,1761089313595,1000.0,0.0001,2]
[392008478,1761089314157,26.6973833,0.00018,2]
[392008479,1761089314186,4324.86240092,0.00018,2]
[392008480,1761089316793,5675.14759908,0.0002,2]
[392008481,1761089316821,10000.01,0.0002,2]
[392008482,1761089317590,213.58928807,0.00016,2]
[392008483,1761089318641,-449.4391333,0.0002,2]
[392008484,1761089319660,-3668.10574888,0.0002,2]
[392008485,1761089319793,-2663.79850224,0.0002,2]
[392008486,1761089319829,-694.82394137,0.0002,2]
[392008487,1761089319866,-934.56895808,0.000215,2]
[392008488,1761089320018,-150.0,0.00020038,2]
[392008489,1761089320053,-1413.62719662,0.000215,2]
[392008490,1761089320266,150.0,0.0002186,2]
[392008491,1761089320696,150.0,0.00023681,2]
[392008492,1761089320738,196.0,0.0001515,2]
[392008493,1761089320783,196.0,0.00015268,2]
[392008494,1761089320843,196.0,0.00015386,2]
[392008495,1761089320909,196.0,0.00015504,2]
[392008496,1761089320973,196.0,0.00015622,2]
[392008497,1761089321036,196.0,0.0001574,2]
[392008498,1761089321135,196.0,0.00015858,2]
[392008499,1761089321216,196.0,0.00015976,2]
[392008500,1761089321291,196.0,0.00016094,2]
[392008501,1761089321355,196.0,0.00016212,2]
[392008502,1761089321660,196.0,0.0001633,2]
[392008503,1761089321710,196.0,0.00016448,2]
[392008504,1761089321760,196.0,0.00016566,2]
[392008505,1761089321805,196.0,0.00016684,2]
[392008506,1761089321858,196.0,0.00016802,2]
[392008507,1761089321910,196.0,0.0001692,2]
[392008508,1761089321956,196.0,0.00017038,2]
[392008509,1761089322005,196.0,0.00017156,2]
[392008510,1761089322049,3044.75560676,0.000198,2]
[392008511,1761089322083,1955.24439324,0.000198,2]
[392008512,1761089322126,196.0,0.00017274,2]
[392008513,1761089322175,196.0,0.00017392,2]
[392008514,1761089322231,196.0,0.0001751,2]
[392008515,1761089322359,196.0,0.00017628,2]